Cogmind - Beta 13 @@@ ROGUE MODE // 2024.04.07 @ 08:53:34 Player: DURANDAL Result: Destroyed by Y-45 Defender with Heavy Assault Rifle Performance ------------- Evolutions (1) 500 Regions Visited (2) 400 Robots Destroyed (26) 130 Value Destroyed (577) 577 Prototype IDs (0) 0 Alien Tech Used (0) 0 Bonus (0) 0 TOTAL SCORE: 1607 Bonus ------- None Cogmind --------- Core Integrity 0/400 Matter 282/300 Energy 100/100 System Corruption 1% Temperature Cool (27) Movement Core (700) Ox13 Location -9/Materials Parts ------- > --- POWER (1) -------- (None) > --- PROPULSION (4) --- (None) > --- UTILITY (2) ------ High-capacity Storage Unit > --- WEAPON (2) ------- (None) > --- INVENTORY (20) --- Improved Heat Sink Small Storage Unit Large Storage Unit Terrain Scanner Transport Network Coupler Targeting Computer Targeting Computer Targeting Computer Utility Shielding Hacking Suite Tractor Beam Peak State ------------ > --- POWER ------------ Light Ion Engine > --- PROPULSION ------- Light Treads Light Treads > --- UTILITY ---------- Large Storage Unit Weight Redist. System > --- WEAPON ----------- Light Assault Rifle Light Assault Rifle > --- INVENTORY -------- Light Ion Engine Improved Heat Sink Small Storage Unit High-capacity Storage Unit Transport Network Coupler Small Laser Grenade Launcher Mining Laser [Rating: 9] Favorites ----------- Power Light Ion Engine Engine Light Ion Engine Propulsion Light Treads Treads Light Treads Utility Weight Redist. System Device Weight Redist. System Storage High-capacity Storage Unit Weapon Light Assault Rifle Energy Gun Small Laser Ballistic Gun Light Assault Rifle Launcher Grenade Launcher Special Weapon Mining Laser Build | -11 -10 -9 ------- Run | Yrd Mat Mat Slots Evolved 2 | . . 2 Power . | . . . Propulsion 2 | . . 2 Utility . | . . . Weapon . | . . . Parts Attached 30 | 6 17 7 Power 3 | 1 1 1 Engine 3 | 1 1 1 Core . | . . . Reactor . | . . . Propulsion 4 | 2 2 . Treads 4 | 2 2 . Leg . | . . . Wheel . | . . . Hover . | . . . Flight . | . . . Utility 4 | 1 3 . Device 1 | . 1 . Storage 3 | 1 2 . Processor . | . . . Hackware . | . . . Protection . | . . . Artifact . | . . . Weapon 19 | 2 11 6 Energy Gun 3 | . 2 1 Energy Cannon . | . . . Ballistic Gun 9 | 2 4 3 Ballistic Cannon . | . . . Launcher 2 | . 1 1 Special Weapon 5 | . 4 1 Impact Weapon . | . . . Slashing Weapon . | . . . Piercing Weapon . | . . . Special Melee Weapon . | . . . Unidentified Prototypes . | . . . Parts Lost 15 | . 5 10 Power 3 | . 1 2 Propulsion 3 | . 2 1 Utility 1 | . . 1 Weapon 8 | . 2 6 Highest Loss Streak 4 | . 2 4 To Critical Strikes . | . . . Average Slot Usage (%) 76 | . 85 54 Engine 10 | . 13 4 Treads 16 | . 19 8 Device 11 | . 11 10 Storage 13 | . 14 11 Energy Gun 6 | . 5 9 Ballistic Gun 13 | . 18 2 Special Weapon 2 | . . 7 Naked Turns . | . . . Heaviest Build 45 | 12 45 45 Greatest Support 46 | 40 46 26 Greatest Overweight (x) 4 | . 1 4 Average Overweight (x) . | . . 1 Largest Inventory Capacity 20 | 8 20 20 Average Capacity 18 | 7 17 20 Most Carried 14 | 3 11 14 Average Carried 8 | . 7 11 Final Capacity 20 | 8 20 20 Final Carried 11 | 1 10 11 Class Distribution -------------------- 100% | Mutant Dominant Class ---------------- Mutant | -10/Materials Mutant | -9/Materials Resources | -11 -10 -9 ----------- Run | Yrd Mat Mat Matter Collected 595 | 179 379 37 Remotely . | . . . Salvage Created 794 | . 544 250 Parts 46 | . 30 16 Haulers Intercepted 2 | . 2 . Recyclers Shooed 3 | . 2 1 Parts Field Recycled . | . . . Retrieved Matter . | . . . Parts Self-Destructed . | . . . Prevented . | . . . Kills | -11 -10 -9 ------- Run | Yrd Mat Mat Combat Hostiles Destroyed 18 | . 10 8 Guns 14 | . 8 6 Cannons 4 | . 2 2 Classes Destroyed 8 | . 7 1 Builder 1 | . 1 . Tunneler 1 | . 1 . Hauler 2 | . 2 . Recycler 3 | . 2 1 Operator 1 | . 1 . Swarmer 6 | . 3 3 Grunt 9 | . 7 2 Sentry 3 | . . 3 Best Kill Streak 4 | . 4 3 Combat Bots Only 4 | . 4 3 Max Kills in Single Turn 1 | . 1 1 Gunslinging . | . . . Exploded . | . . . Melee . | . . . Uniques/NPCs Destroyed . | . . . Combat | -11 -10 -9 -------- Run | Yrd Mat Mat Hostile Shots Fired 211 | . 104 107 Missed 57 | . 27 30 Damage Taken 1820 | . 821 999 Core 529 | . 125 404 Absorbed by Shields . | . . . Core Remaining (%) 75 | 100 50 . Volleys Fired 151 | . 107 44 Largest 2 | . 2 2 Hottest 140 | . 120 140 Shots Fired 220 | . 166 54 Gun 204 | . 156 48 Cannon . | . . . Launcher . | . . . Special 16 | . 10 6 Kinetic 182 | . 150 32 Thermal 38 | . 16 22 Explosive . | . . . Electromagnetic . | . . . Robot Hit Streak 20 | . 13 20 Robot Miss Streak 5 | . 5 1 Penetration Max . | . . . Secondary Targets 2 | . 2 . Max Gunslinging Chain 1 | . 1 . Shots Hit Robots 142 | . 95 47 Core Hits 49 | . 31 18 Critical Kills 1 | . 1 . Critical Parts Destroyed 2 | . 2 . Critical Strikes 3 | . 3 . Destroy 3 | . 3 . Melee Attacks . | . . . Impact . | . . . Slashing . | . . . Piercing . | . . . Sneak Attacks . | . . . Combat Hostiles . | . . . Follow-up Attacks . | . . . Damage Inflicted 1381 | . 875 506 Guns 1102 | . 731 371 Cannons . | . . . Explosions . | . . . Melee . | . . . Ramming 39 | . 24 15 Kinetic 950 | . 719 231 Thermal 392 | . 132 260 Explosive . | . . . Electromagnetic . | . . . Impact . | . . . Slashing . | . . . Piercing . | . . . Highest Corruption 1 | . 1 1 Average Corruption 1 | . 1 1 Corruption Purged . | . . . Corruption Blocked . | . . . Effects 11 | . 11 . Message Errors 2 | . 2 . Matter Fused 1 | . 1 . Heat Flow Errors 3 | . 3 . Parts Rejected 1 | . 1 . Data Loss (minor) 2 | . 2 . Data Loss (major) 1 | . 1 . Misfires 1 | . 1 . Overload Shots . | . . . Overflow Damage 8 | . 8 . Projectiles 8 | . 8 . Explosions . | . . . Melee . | . . . Knockbacks 1 | . 1 . Impact 1 | . 1 . Kinetic . | . . . Secondary . | . . . Self-Inflicted Damage 4 | . . 4 Shots . | . . . Rammed 12 | . 6 6 Targets Rammed 14 | . 7 7 Kicked . | . . . Crushed 2 | . 1 1 Highest Temperature 227 | . 227 68 Average Temperature 40 | . 46 24 Received Heat Transfer 678 | . 336 342 Siege Activations . | . . . Robots Corrupted . | . . . Combat Hostiles . | . . . Parts Fried . | . . . Impact Corruptions . | . . . Robots Melted . | . . . Combat Hostiles . | . . . Parts Melted . | . . . Heat Transferred 850 | . 275 575 Parts Sabotaged . | . . . Parts Stolen . | . . . Parts Stripped . | . . . Power Chain Reactions . | . . . Alert | -11 -10 -9 ------- Run | Yrd Mat Mat Peak Influence 222 | . 222 125 Initial . | . . . Average 51 | . 54 46 Maximum Alert Level 1 | . 1 . Low Security (%) 94 | 100 92 100 Level 1 5 | . 7 . Level 2 . | . . . Level 3 . | . . . Level 4 . | . . . Level 5 . | . . . High Security . | . . . Max Security . | . . . Squads Dispatched 2 | . 2 . Investigation 1 | . 1 . Extermination . | . . . Reinforcement 1 | . 1 . Assault . | . . . Garrison . | . . . Intercept . | . . . Searches Triggered . | . . . Construction Impeded . | . . . Haulers Reinforced . | . . . Active Scanning Responses . | . . . Cargo Convoy Interrupts . | . . . Stealth | -11 -10 -9 --------- Run | Yrd Mat Mat Distress Signals 4 | . 2 2 Communications Jammed . | . . . Distress Signals . | . . . Times Spotted 54 | . 37 17 Peak Tracking Total 6 | . 5 6 Tactical Retreats . | . . . Traps | -11 -10 -9 ------- Run | Yrd Mat Mat Traps Triggered 1 | . 1 . Indirectly . | . . . Trap Hack Attempts . | . . . Triggered . | . . . Disarmed . | . . . Reprogrammed . | . . . Reused . | . . . Traps Extracted . | . . . Installed . | . . . Triggered . | . . . Machines | -11 -10 -9 ---------- Run | Yrd Mat Mat Machines Disabled . | . . . Max in Single Turn . | . . . Machines Repaired . | . . . Machines Dismantled . | . . . Machines Sabotaged . | . . . Overloaded Fab Kills . | . . . Hacking | -11 -10 -9 --------- Run | Yrd Mat Mat Machines Accessed 5 | . 5 . Terminals 2 | . 2 . Fabricators . | . . . Repair Stations 1 | . 1 . Recycling Units 2 | . 2 . Scanalyzers . | . . . Garrison Access . | . . . Total Hacks 9 | . 9 . Successful 5 | . 5 . Failed 4 | . 4 . Catastrophic 1 | . 1 . Database Lockouts . | . . . Manual . | . . . Terminals 2 | . 2 . Fabricators . | . . . Repair Stations 1 | . 1 . Recycling Units 6 | . 6 . Scanalyzers . | . . . Garrison Access . | . . . Terminal Hacks 2 | . 2 . Locate Traps 2 | . 2 . Fabricator Hacks . | . . . Repair Station Hacks . | . . . Recycling Unit Hacks 3 | . 3 . Report Inventory 2 | . 2 . Retrieve Components 1 | . 1 . Scanalyzer . | . . . Garrison Access Hacks . | . . . Unauthorized Hacks . | . . . Terminals . | . . . Fabricators . | . . . Repair Stations . | . . . Recycling Units . | . . . Scanalyzers . | . . . Garrison Access . | . . . Data Cores Recovered . | . . . Used . | . . . Hacking Detections 3 | . 3 . Full Trace Events 1 | . 1 . Feedback Events . | . . . Feedback Blocked . | . . . Robot Schematics Acquired . | . . . Robots Built . | . . . Authchips . | . . . Time . | . . . Total Robot Build Rating . | . . . Part Schematics Acquired . | . . . Parts Built . | . . . Authchips . | . . . Time . | . . . Total Part Build Rating . | . . . Parts Repaired . | . . . Time . | . . . Parts Recycled . | . . . Recycled Matter . | . . . Retrieved Matter . | . . . Retrieved Components 7 | . 7 . Parts Scanalyzed . | . . . Part Schematics Acquired . | . . . Parts Damaged . | . . . Bothacking | -11 -10 -9 ------------ Run | Yrd Mat Mat Used RIF Installer . | . . . Robots Hacked . | . . . Non-combat . | . . . Combat . | . . . Robot Hacks Applied . | . . . Relay Couplers Released . | . . . Fabnet Peak Effective % . | . . . Robots Rewired . | . . . Allies Hacked . | . . . Hacks Repelled . | . . . Allies | -11 -10 -9 -------- Run | Yrd Mat Mat Total Allies . | . . . Largest Group . | . . . Highest-Rated Group . | . . . Highest-Rated Ally . | . . . Total Orders . | . . . Ally Attacks . | . . . Total Damage . | . . . Kills . | . . . Allies Corrupted . | . . . Allies Melted . | . . . Intel | -11 -10 -9 ------- Run | Yrd Mat Mat Robot Analysis Total . | . . . Derelict Logs Recovered . | . . . Drone Launches . | . . . Drone Recoveries . | . . . Exploration | -11 -10 -9 ------------- Run | Yrd Mat Mat Turns Passed 2934 | 66 2089 779 Spaces Moved 1107 | 36 832 239 Core 35 | 5 . 30 Treads 1072 | 31 832 209 Legs . | . . . Wheels . | . . . Hover . | . . . Flight . | . . . Fastest Speed 50 | 50 160 240 Average Speed 212 | 144 206 241 Slowest Speed 250 | 160 240 250 Overloaded Moves . | . . . Propulsion Burnouts . | . . . Robots Hopped . | . . . Cave-ins Triggered . | . . . Exploration Rate (%) 38 | 5 84 26 Regions Visited 2 Branch Regions . Pre-discovered Areas . | . . . Known Exits Taken . | . . . Unknown Exits Taken 2 | 1 1 . Scrap Searched . | . . . Spaces Dug 5 | . 5 . Terrain Destroyed 5 | . 5 . Melee . | . . . Projectile 5 | . 5 . AOE . | . . . Terrain Rammed . | . . . Walls Destroyed . | . . . Machines Disabled . | . . . Actions | -11 -10 -9 --------- Run | Yrd Mat Mat Total 1450 | 50 1034 366 Wait 122 | 2 57 63 Move 1105 | 35 831 239 Hop . | . . . Pick Up 28 | 7 15 6 Fast Attach . | . . . Attach 17 | 6 6 5 Detach . | . . . Swap 13 | . 11 2 Drop . | . . . Fire 151 | . 107 44 Melee . | . . . Ram 5 | . . 5 Kick . | . . . Crush 9 | . 7 2 Escape Stasis . | . . . Rewire . | . . . Trap . | . . . Miscellaneous . | . . . Route ------- -11/Scrapyard -10/Materials (discovered 3 exits: [*Mat x3]) -9/Materials (discovered 2 exits: [*Min] / [*Sto]) History --------- Turn | Location | Event 43 | -11/Scrapyard | Discovered new exit (range 15) 67 | -11/Scrapyard | Entered Materials 316 | -10/Materials | Build established: Mutant 1130 | -10/Materials | Discovered new exit (range 10) 1266 | -10/Materials | Discovered new exit (range 11) 1712 | -10/Materials | Discovered new exit (range 16) 2156 | -10/Materials | Entered another Materials area 2156 | -9/Materials | Evolved 2 slots: Propulsion x2 2322 | -9/Materials | Discovered new exit (range 15) 2682 | -9/Materials | Discovered new exit (range 14) 2876 | -9/Materials | Lost 3 parts (1p2w) 2907 | -9/Materials | Core integrity fell below 50% 2931 | -9/Materials | Core integrity fell below 20% 2935 | -9/Materials | Destroyed by Y-45 Defender with Heavy Assault Rifle Last Messages --------------- 02848_ Acquired 11 matter. 02851_ W-16 Scout sends out distress signal. 02853_ Acquired Lgt. Assault Rifle. 02855_ R-06 Scavenger collects Lgt. Ion Engine. 02866_ R-06 Scavenger collects Flight Unit. 02878_ G-34 Mercenary destroyed. 02903_ Lgt. Assault Rifle destroyed. 02914_ Critical hit (Burn: +37). 02920_ Grenade Launcher destroyed. 02923_ Matter Filter disabled. 02923_ Lgt. Assault Rifle destroyed. 02923_ Slammed into Y-45 Defender. 02926_ R-06 Scavenger collects Aluminum Leg. 02926_ Slammed into Y-45 Defender. 02926_ Weight Redist. System destroyed. 02928_ M-13 Machinist repairs Y-45 Defender. 02928_ Slammed into M-13 Machinist. 02929_ R-06 Scavenger collects Ion Engine. 02932_ Critical hit (Burn: +37). Map ----- +----------------------------------------------------+ | ???????????????????????????????????????????????? | | ???????????????????????????????????????????????? | | ???????????????????????????????????????????????? | | ???????????????????????????????????????????????? | | ???????????????????????????????????????????????? | | ???????????????????????????????????????????????? | | ???????????????????????????????????????????????? | | ???????????????????????????????????????????????? | | ???????????????????????????????????????????????? | | ???????????????????????????????????????????????? | | ???????????????????????????????????????????????? | | ???????????????????????????????????????????????? | | ???????????????????????????????????????????????? | | ???????????????????????????????????????????????? | | ???????????????????????????????????????????????? | | ???????????????????????????????????????????????? | | ????????????????????####???????????????????????? | | ????????????????????# ???????????????????????? | | ??????????????????#?# ""??????????????????????? | | ?????????????????## #! """""???????????????????? | | ????????????????? # r""""" #????????????###??? | | ????????????????? + """"" #????????????# ?? | | ?????????????????# ?# """""m#????????????/ ? | | ?????????????????# ?#| """"" #????????????# ?? | | ?????????????????# # "%""" #????????????# #? | | ?????????????????# #Y @[ #????????????# #? | | ?????????????????# ###Y######????????????# #? | | ?????????????????# ??#%#?????????????????# #? | | ?????????????????# ??# #?????????????#???# #? | | ?????????????????# ###%##???????????? ??# #? | | ?????????????????# =* #######??????"""?# ## | | ?????????????????# % + """"" #[ | | ?????????????????# #+########### """"" # | | ???????????? # ! #?? / | | ??????? + #######???# | | ??????# #### #### """ =# ##### | | ??????#???????# ???# """"" # | | ??????????????# ???# """"" %+ | | ??????????????#+##+???# """"" # | | ??????????????????????# """ # ########## | | ??????????????????????# #######????????# | | ??????????????????????#######+###??????????????? | | ???????????????????????????? ?????????????????? | | ??????????????????????????? ?????????????????? | | ?????????????????????????? ?????????????????? | | ?????????????????????????##+#??????????????????? | | ???????????????????????????????????????????????? | | ???????????????????????????????????????????????? | | ???????????????????????????????????????????????" | | ???????????????????????????????????????????????? | +----------------------------------------------------+ Best States ------------- Heat Dissipation 28 Energy Generation 10 Energy Capacity 250 Matter Stores 300 Matter Capacity 300 Sight Range 16 Terrain Scan Density 10 Additional Mass Support 6 Evasion (%) 40 Recoil Reduction 2 Item Schematics ----------------- None Robot Schematics ------------------ None Fabricated ------------ Nothing Alien Tech Used ----------------- None Achievements -------------- None Challenges ------------ None Game ------ Seed DisruptionPointyRedirector Manual? 0 Play Time 00:20:05 Cumulative 9.1 hours Start 2024.04.07 @ 08:32:17 End 2024.04.07 @ 08:53:34 Sessions 1 Manual Loads 0 Difficulty Rogue Special Mode None Game No. 18 Rogue 18 Adventurer 0 Explorer 0 Win Type - Total 0 Types 0/0/0/0/0/0/0/0/0 Lore% 14 Gallery% 11 Achievement% 13 Wizard Run 0 Options --------- Layout 1 ASCII 0 Keyboard 0 Movement Numpad Keybinds 0 Fullscreen 1 Font 24/Smallcaps Map View 50x35 Zoom Use 0% Tactical HUD 1 Map Filters NONE Filters NONE Steam 1 RUN: 1d726d15-6bd3-4bb6-b9a8-8e46476f8ff2